[Event "Goteborg Open 2018"]
[Site "Molnlycke kulturhus, Biblioteksgatan 2, Molnlycke, Sweden"]
[Date "2018.08.17"]
[Round "3.3"]
[White "Vypkhaniuk, Ihor"]
[Black "Rasti, Arvin"]
[Result "1-0"]
[TimeControl "15 minutes + 5 seconds per move from move one (Round 1 - 4) / 90 minutes + 30 seconds per move from move one (Round 5 - 8)"]
[WhiteTitle "FM"]
[WhiteFideId "14112256"]
[BlackFideId "1741160"]
[WhiteElo "2357"]
[BlackElo "2091"]

1. Nf3 {[%clk 00:15:02]} {[%emt 00:00:02]} d5 {[%clk 00:15:02]} {[%emt
00:00:04]} 2. g3 {[%clk 00:15:05]} {[%emt 00:00:02]} Nf6 {[%clk 00:14:59]}
{[%emt 00:00:07]} 3. Bg2 {[%clk 00:15:09]} {[%emt 00:00:01]} g6 {[%clk
00:14:42]} {[%emt 00:00:23]} 4. c4 {[%clk 00:15:09]} {[%emt 00:00:05]} c6
{[%clk 00:14:38]} {[%emt 00:00:08]} 5. Qa4 {[%clk 00:15:12]} {[%emt 00:00:02]}
Bd7 {[%clk 00:13:42]} {[%emt 00:01:02]} 6. Ne5 {[%clk 00:14:03]} {[%emt
00:01:14]} Bg7 {[%clk 00:13:28]} {[%emt 00:00:19]} 7. Nxd7 {[%clk 00:13:43]}
{[%emt 00:00:25]} Nbxd7 {[%clk 00:13:09]} {[%emt 00:00:24]} 8. cxd5 {[%clk
00:13:42]} {[%emt 00:00:06]} Nb6 {[%clk 00:12:25]} {[%emt 00:00:49]} 9. Qa5
{[%clk 00:13:29]} {[%emt 00:00:18]} Nbxd5 {[%clk 00:11:57]} {[%emt 00:00:32]}
10. Qxd8+ {[%clk 00:13:15]} {[%emt 00:00:19]} Rxd8 {[%clk 00:12:00]} {[%emt
00:00:02]} 11. O-O {[%clk 00:13:13]} {[%emt 00:00:08]} O-O {[%clk 00:11:12]}
{[%emt 00:00:53]} 12. d3 {[%clk 00:13:17]} {[%emt 00:00:02]} Rfe8 {[%clk
00:09:59]} {[%emt 00:01:17]} 13. Nd2 {[%clk 00:13:04]} {[%emt 00:00:17]} e5
{[%clk 00:09:32]} {[%emt 00:00:32]} 14. a3 {[%clk 00:13:08]} {[%emt 00:00:02]}
Bf8 {[%clk 00:08:49]} {[%emt 00:00:47]} 15. Re1 {[%clk 00:12:51]} {[%emt
00:00:22]} Bc5 {[%clk 00:08:21]} {[%emt 00:00:33]} 16. Nb3 {[%clk 00:12:38]}
{[%emt 00:00:18]} Bb6 {[%clk 00:08:16]} {[%emt 00:00:10]} 17. Bg5 {[%clk
00:12:12]} {[%emt 00:00:31]} Kg7 {[%clk 00:08:11]} {[%emt 00:00:11]} 18. Rac1
{[%clk 00:12:13]} {[%emt 00:00:04]} h6 {[%clk 00:08:11]} {[%emt 00:00:05]} 19.
Bxf6+ {[%clk 00:12:10]} {[%emt 00:00:08]} Nxf6 {[%clk 00:07:55]} {[%emt
00:00:21]} 20. Nc5 {[%clk 00:12:13]} {[%emt 00:00:02]} Bxc5 {[%clk 00:07:46]}
{[%emt 00:00:15]} 21. Rxc5 {[%clk 00:12:16]} {[%emt 00:00:01]} e4 {[%clk
00:07:46]} {[%emt 00:00:05]} 22. dxe4 {[%clk 00:12:14]} {[%emt 00:00:07]} Nxe4
{[%clk 00:07:49]} {[%emt 00:00:02]} 23. Rc4 {[%clk 00:11:34]} {[%emt 00:00:44]}
Nd6 {[%clk 00:07:27]} {[%emt 00:00:28]} 24. Rc2 {[%clk 00:11:26]} {[%emt
00:00:13]} Nb5 {[%clk 00:07:16]} {[%emt 00:00:16]} 25. e3 {[%clk 00:11:29]}
{[%emt 00:00:02]} Re7 {[%clk 00:06:27]} {[%emt 00:00:54]} 26. a4 {[%clk
00:11:09]} {[%emt 00:00:25]} Nc7 {[%clk 00:05:54]} {[%emt 00:00:38]} 27. Bh3
{[%clk 00:09:57]} {[%emt 00:01:17]} f5 {[%clk 00:05:10]} {[%emt 00:00:50]} 28.
Bg2 {[%clk 00:09:51]} {[%emt 00:00:11]} Red7 {[%clk 00:05:07]} {[%emt
00:00:08]} 29. h4 {[%clk 00:09:20]} {[%emt 00:00:35]} Rd2 {[%clk 00:04:35]}
{[%emt 00:00:37]} 30. Rec1 {[%clk 00:09:21]} {[%emt 00:00:04]} a5 {[%clk
00:04:32]} {[%emt 00:00:08]} 31. h5 {[%clk 00:07:37]} {[%emt 00:01:49]} Na6
{[%clk 00:03:34]} {[%emt 00:01:03]} 32. hxg6 {[%clk 00:07:25]} {[%emt
00:00:18]} Kxg6 {[%clk 00:03:28]} {[%emt 00:00:10]} 33. Rxd2 {[%clk 00:06:55]}
{[%emt 00:00:35]} Rxd2 {[%clk 00:03:32]} {[%emt 00:00:02]} 34. Bxc6 {[%clk
00:06:59]} {[%emt 00:00:02]} Rxb2 {[%clk 00:03:02]} {[%emt 00:00:34]} 35. Bxb7
{[%clk 00:06:45]} {[%emt 00:00:18]} Nb4 {[%clk 00:03:06]} 36. Rd1 {[%clk
00:06:22]} {[%emt 00:00:28]} Na2 {[%clk 00:02:07]} {[%emt 00:01:05]} 37. Rd6+
{[%clk 00:06:10]} {[%emt 00:00:17]} Kg5 {[%clk 00:01:37]} {[%emt 00:00:30]} 38.
Bf3 {[%clk 00:05:42]} {[%emt 00:00:37]} Nc3 {[%clk 00:01:24]} {[%emt 00:00:19]}
39. Rc6 {[%clk 00:05:36]} {[%emt 00:00:10]} Nxa4 {[%clk 00:01:14]} {[%emt
00:00:15]} 40. Bd1 {[%clk 00:05:38]} {[%emt 00:00:02]} Rb1 {[%clk 00:01:15]}
{[%emt 00:00:04]} 41. f4# {[%clk 00:05:41]} {[%emt 00:00:02]} 1-0

[Event "Goteborg Open 2018"]
[Site "Molnlycke kulturhus, Biblioteksgatan 2, Molnlycke, Sweden"]
[Date "2018.08.17"]
[Round "3.4"]
[White "Al Waeli, Laith"]
[Black "Rydstrom, Tom"]
[Result "0-1"]
[TimeControl "15 minutes + 5 seconds per move from move one (Round 1 - 4) / 90 minutes + 30 seconds per move from move one (Round 5 - 8)"]
[WhiteTitle "FM"]
[BlackTitle "FM"]
[WhiteFideId "4801059"]
[BlackFideId "1714830"]
[WhiteElo "2084"]
[BlackElo "2316"]

1. d4 {[%clk 00:15:00]} {[%emt 00:00:04]} g6 {[%clk 00:15:01]} {[%emt
00:00:05]} 2. Nf3 {[%clk 00:15:00]} {[%emt 00:00:04]} Bg7 {[%clk 00:15:05]}
{[%emt 00:00:02]} 3. g3 {[%clk 00:14:43]} {[%emt 00:00:21]} d6 {[%clk
00:15:09]} {[%emt 00:00:02]} 4. Bg2 {[%clk 00:14:46]} {[%emt 00:00:02]} Nd7
{[%clk 00:14:53]} {[%emt 00:00:21]} 5. O-O {[%clk 00:14:44]} {[%emt 00:00:07]}
e5 {[%clk 00:14:55]} {[%emt 00:00:03]} 6. e4 {[%clk 00:14:17]} {[%emt
00:00:31]} Ne7 {[%clk 00:14:52]} {[%emt 00:00:09]} 7. Nc3 {[%clk 00:14:18]}
{[%emt 00:00:04]} O-O {[%clk 00:14:53]} {[%emt 00:00:04]} 8. Re1 {[%clk
00:14:01]} {[%emt 00:00:21]} h6 {[%clk 00:14:52]} {[%emt 00:00:07]} 9. a4
{[%clk 00:13:13]} {[%emt 00:00:53]} a5 {[%clk 00:12:57]} {[%emt 00:02:00]} 10.
dxe5 {[%clk 00:11:50]} {[%emt 00:01:28]} dxe5 {[%clk 00:12:35]} {[%emt
00:00:27]} 11. Nd5 {[%clk 00:11:49]} {[%emt 00:00:06]} c6 {[%clk 00:12:25]}
{[%emt 00:00:15]} 12. Ne3 {[%clk 00:11:04]} {[%emt 00:00:49]} Nc5 {[%clk
00:11:57]} {[%emt 00:00:33]} 13. Qxd8 {[%clk 00:10:32]} {[%emt 00:00:37]} Rxd8
{[%clk 00:12:00]} {[%emt 00:00:02]} 14. Nc4 {[%clk 00:10:16]} {[%emt 00:00:20]}
f6 {[%clk 00:11:34]} {[%emt 00:00:32]} 15. Be3 {[%clk 00:10:07]} {[%emt
00:00:14]} Ne6 {[%clk 00:11:22]} {[%emt 00:00:17]} 16. Bb6 {[%clk 00:09:51]}
{[%emt 00:00:21]} Rf8 {[%clk 00:11:13]} {[%emt 00:00:14]} 17. Rad1 {[%clk
00:09:36]} {[%emt 00:00:20]} c5 {[%clk 00:10:50]} {[%emt 00:00:28]} 18. Bxa5
{[%clk 00:08:49]} {[%emt 00:00:52]} Nc6 {[%clk 00:10:31]} {[%emt 00:00:25]} 19.
Bc3 {[%clk 00:08:50]} {[%emt 00:00:03]} Rxa4 {[%clk 00:10:34]} {[%emt
00:00:02]} 20. Nb6 {[%clk 00:08:51]} {[%emt 00:00:04]} Ra6 {[%clk 00:10:14]}
{[%emt 00:00:25]} 21. Nxc8 {[%clk 00:08:53]} {[%emt 00:00:04]} Rxc8 {[%clk
00:10:18]} {[%emt 00:00:01]} 22. Bh3 {[%clk 00:08:38]} {[%emt 00:00:20]} Ncd4
{[%clk 00:10:21]} {[%emt 00:00:02]} 23. Bxd4 {[%clk 00:04:53]} {[%emt
00:03:49]} cxd4 {[%clk 00:10:23]} {[%emt 00:00:03]} 24. c3 {[%clk 00:04:43]}
{[%emt 00:00:16]} dxc3 {[%clk 00:10:14]} {[%emt 00:00:15]} 25. bxc3 {[%clk
00:04:47]} Rxc3 {[%clk 00:10:14]} {[%emt 00:00:05]} 26. Nh4 {[%clk 00:04:37]}
{[%emt 00:00:15]} Nd4 {[%clk 00:10:14]} {[%emt 00:00:05]} 27. Kg2 {[%clk
00:04:16]} {[%emt 00:00:26]} Kf7 {[%clk 00:10:03]} {[%emt 00:00:17]} 28. Rb1
{[%clk 00:03:48]} {[%emt 00:00:33]} b5 {[%clk 00:10:07]} {[%emt 00:00:02]} 29.
Ra1 {[%clk 00:03:52]} Ra4 {[%clk 00:06:58]} {[%emt 00:03:14]} 30. Reb1 {[%clk
00:03:23]} {[%emt 00:00:33]} Nb3 {[%clk 00:06:27]} {[%emt 00:00:36]} 31. Rxa4
{[%clk 00:02:54]} {[%emt 00:00:34]} bxa4 {[%clk 00:06:31]} {[%emt 00:00:02]} 32.
Bd7 {[%clk 00:02:53]} {[%emt 00:00:06]} a3 {[%clk 00:06:22]} {[%emt 00:00:14]}
33. Ba4 {[%clk 00:02:29]} {[%emt 00:00:29]} a2 {[%clk 00:04:47]} {[%emt
00:01:39]} 34. Bxb3+ {[%clk 00:02:30]} {[%emt 00:00:04]} Rxb3 {[%clk 00:04:50]}
{[%emt 00:00:03]} 35. Ra1 {[%clk 00:02:30]} {[%emt 00:00:04]} Ra3 {[%clk
00:02:34]} {[%emt 00:02:21]} 36. Nf3 {[%clk 00:02:32]} {[%emt 00:00:03]} Bf8
{[%clk 00:02:38]} {[%emt 00:00:01]} 37. Ne1 {[%clk 00:01:37]} {[%emt 00:00:59]}
Bb4 {[%clk 00:02:35]} {[%emt 00:00:08]} 38. Nc2 {[%clk 00:01:23]} {[%emt
00:00:20]} Bc3 {[%clk 00:02:39]} {[%emt 00:00:01]} 39. Rc1 {[%clk 00:00:59]}
{[%emt 00:00:28]} Bb2 {[%clk 00:02:00]} {[%emt 00:00:45]} 40. Rd1 {[%clk
00:01:00]} {[%emt 00:00:04]} a1=Q {[%clk 00:02:02]} {[%emt 00:00:02]} 41. Nxa1
{[%clk 00:01:03]} {[%emt 00:00:02]} Bxa1 {[%clk 00:02:06]} {[%emt 00:00:01]} 42.
Rd2 {[%clk 00:00:46]} {[%emt 00:00:23]} Bd4 {[%clk 00:02:07]} {[%emt 00:00:04]}
43. g4 {[%clk 00:00:45]} {[%emt 00:00:06]} Rb3 {[%clk 00:02:07]} {[%emt
00:00:05]} 44. f3 {[%clk 00:00:48]} {[%emt 00:00:02]} Rb2 {[%clk 00:02:10]}
{[%emt 00:00:01]} 45. Rxb2 {[%clk 00:00:49]} {[%emt 00:00:04]} Bxb2 {[%clk
00:02:14]} {[%emt 00:00:01]} 46. h3 {[%clk 00:00:40]} {[%emt 00:00:14]} Ke6
{[%clk 00:02:19]} 47. h4 {[%clk 00:00:33]} {[%emt 00:00:12]} h5 {[%clk
00:02:14]} {[%emt 00:00:09]} 48. Kh3 {[%clk 00:00:28]} {[%emt 00:00:09]} Kd6
{[%clk 00:02:04]} {[%emt 00:00:15]} 49. Kg3 {[%clk 00:00:22]} {[%emt 00:00:12]}
Bc1 {[%clk 00:02:07]} {[%emt 00:00:02]} 50. Kg2 {[%clk 00:00:24]} {[%emt
00:00:02]} Kc5 {[%clk 00:02:11]} {[%emt 00:00:01]} 51. Kf2 {[%clk 00:00:26]}
{[%emt 00:00:03]} Kd4 {[%clk 00:02:12]} {[%emt 00:00:04]} 52. Ke2 {[%clk
00:00:29]} {[%emt 00:00:02]} hxg4 {[%clk 00:02:14]} {[%emt 00:00:03]} 53. fxg4
{[%clk 00:00:32]} {[%emt 00:00:02]} Kxe4 {[%emt 00:00:10]} 0-1

[Event "Goteborg Open 2018"]
[Site "Molnlycke kulturhus, Biblioteksgatan 2, Molnlycke, Sweden"]
[Date "2018.08.17"]
[Round "3.5"]
[White "Wellevit, Tomas"]
[Black "Lundstrom, Mattias"]
[Result "1-0"]
[TimeControl "15 minutes + 5 seconds per move from move one (Round 1 - 4) / 90 minutes + 30 seconds per move from move one (Round 5 - 8)"]
[WhiteFideId "1731963"]
[BlackFideId "1703536"]
[WhiteElo "1905"]
[BlackElo "2163"]

1. e4 {[%clk 00:15:04]} c5 {[%clk 00:15:03]} {[%emt 00:00:02]} 2. Nf3 {[%clk
00:15:00]} {[%emt 00:00:09]} d6 {[%clk 00:15:07]} {[%emt 00:00:02]} 3. Bc4
{[%clk 00:14:57]} {[%emt 00:00:08]} Nf6 {[%clk 00:15:09]} {[%emt 00:00:03]} 4.
d3 {[%clk 00:14:29]} {[%emt 00:00:34]} e6 {[%clk 00:15:04]} {[%emt 00:00:10]} 5.
O-O {[%clk 00:14:31]} {[%emt 00:00:03]} Be7 {[%clk 00:15:02]} {[%emt 00:00:07]}
6. Nc3 {[%clk 00:13:29]} {[%emt 00:01:08]} O-O {[%clk 00:15:03]} {[%emt
00:00:03]} 7. Ne2 {[%clk 00:12:10]} {[%emt 00:01:24]} d5 {[%clk 00:14:29]}
{[%emt 00:00:39]} 8. exd5 {[%clk 00:11:59]} {[%emt 00:00:17]} exd5 {[%clk
00:14:32]} {[%emt 00:00:02]} 9. Bb3 {[%clk 00:12:03]} {[%emt 00:00:01]} Bg4
{[%clk 00:12:30]} {[%emt 00:02:07]} 10. Ng3 {[%clk 00:11:52]} {[%emt 00:00:16]}
h6 {[%clk 00:12:24]} {[%emt 00:00:11]} 11. h3 {[%clk 00:11:45]} {[%emt
00:00:12]} Be6 {[%clk 00:12:24]} {[%emt 00:00:05]} 12. c3 {[%clk 00:11:39]}
{[%emt 00:00:11]} Qc7 {[%clk 00:11:29]} {[%emt 00:01:01]} 13. Re1 {[%clk
00:10:22]} {[%emt 00:01:22]} Nc6 {[%clk 00:11:31]} {[%emt 00:00:04]} 14. Nh4
{[%clk 00:09:20]} {[%emt 00:01:06]} Bd6 {[%clk 00:10:27]} {[%emt 00:01:09]} 15.
Nhf5 {[%clk 00:08:33]} {[%emt 00:00:52]} Bf4 {[%clk 00:10:01]} {[%emt
00:00:30]} 16. Qf3 {[%clk 00:08:28]} {[%emt 00:00:11]} Bxc1 {[%clk 00:09:48]}
{[%emt 00:00:19]} 17. Raxc1 {[%clk 00:08:32]} {[%emt 00:00:01]} Rac8 {[%clk
00:09:22]} {[%emt 00:00:30]} 18. Nxh6+ {[%clk 00:08:33]} {[%emt 00:00:04]} Kh7
{[%clk 00:09:09]} {[%emt 00:00:18]} 19. Nhf5 {[%clk 00:08:02]} {[%emt
00:00:36]} Ne5 {[%clk 00:09:03]} {[%emt 00:00:11]} 20. Qe2 {[%clk 00:07:14]}
{[%emt 00:00:54]} Ng6 {[%clk 00:09:00]} {[%emt 00:00:08]} 21. d4 {[%clk
00:07:02]} {[%emt 00:00:17]} Qf4 {[%clk 00:08:10]} {[%emt 00:00:55]} 22. Bc2
{[%clk 00:06:37]} {[%emt 00:00:30]} Rfe8 {[%clk 00:07:15]} {[%emt 00:01:00]} 23.
Nh5 {[%clk 00:06:18]} {[%emt 00:00:24]} Qg5 {[%clk 00:06:23]} {[%emt 00:00:57]}
24. Nxf6+ {[%clk 00:06:14]} {[%emt 00:00:09]} Qxf6 {[%clk 00:06:26]} {[%emt
00:00:01]} 25. Qh5+ {[%clk 00:06:16]} {[%emt 00:00:04]} Kg8 {[%clk 00:06:30]}
26. Nd6 {[%clk 00:06:18]} {[%emt 00:00:03]} cxd4 {[%clk 00:04:52]} {[%emt
00:01:43]} 27. Nxc8 {[%clk 00:06:02]} {[%emt 00:00:22]} Rxc8 {[%clk 00:04:43]}
{[%emt 00:00:14]} 28. cxd4 {[%clk 00:06:06]} Qf4 {[%clk 00:04:23]} {[%emt
00:00:24]} 29. g3 {[%clk 00:04:54]} {[%emt 00:01:17]} Qd2 {[%clk 00:03:55]}
{[%emt 00:00:32]} 30. Red1 {[%clk 00:03:43]} {[%emt 00:01:17]} Qh6 {[%clk
00:03:58]} {[%emt 00:00:02]} 31. Qxh6 {[%clk 00:03:46]} {[%emt 00:00:02]} gxh6
{[%clk 00:04:01]} {[%emt 00:00:01]} 32. Bxg6 {[%clk 00:03:48]} {[%emt
00:00:03]} fxg6 {[%clk 00:04:04]} {[%emt 00:00:02]} 33. Rxc8+ {[%clk 00:03:52]}
{[%emt 00:00:02]} Bxc8 {[%clk 00:04:08]} {[%emt 00:00:01]} 34. Kg2 {[%clk
00:03:48]} {[%emt 00:00:09]} Bd7 {[%clk 00:04:06]} {[%emt 00:00:07]} 35. Re1
{[%clk 00:03:46]} {[%emt 00:00:06]} Kf7 {[%clk 00:04:09]} {[%emt 00:00:02]} 36.
Re5 {[%clk 00:03:48]} {[%emt 00:00:03]} Be6 {[%clk 00:03:53]} {[%emt 00:00:20]}
37. f4 {[%clk 00:03:48]} {[%emt 00:00:06]} Kf6 {[%clk 00:03:57]} {[%emt
00:00:01]} 38. g4 {[%clk 00:03:48]} {[%emt 00:00:05]} h5 {[%clk 00:03:48]}
{[%emt 00:00:13]} 39. Kf3 {[%clk 00:03:50]} {[%emt 00:00:03]} hxg4+ {[%clk
00:03:52]} {[%emt 00:00:02]} 40. hxg4 {[%clk 00:03:54]} a6 {[%clk 00:03:42]}
{[%emt 00:00:16]} 41. a4 {[%clk 00:03:51]} {[%emt 00:00:08]} b6 {[%clk
00:03:34]} {[%emt 00:00:13]} 42. b4 {[%clk 00:03:54]} {[%emt 00:00:02]} Bf7
{[%clk 00:03:14]} {[%emt 00:00:25]} 43. a5 {[%clk 00:03:48]} {[%emt 00:00:11]}
bxa5 {[%clk 00:03:14]} {[%emt 00:00:06]} 44. bxa5 {[%clk 00:03:52]} Be6 {[%clk
00:03:11]} {[%emt 00:00:07]} 45. Kg3 {[%clk 00:03:31]} {[%emt 00:00:25]} Bf7
{[%clk 00:03:08]} {[%emt 00:00:09]} 46. Kh4 {[%clk 00:03:31]} {[%emt 00:00:05]}
Be6 {[%clk 00:03:10]} {[%emt 00:00:02]} 47. Kg3 {[%clk 00:03:32]} {[%emt
00:00:04]} Bf7 {[%clk 00:03:14]} {[%emt 00:00:01]} 48. Kh3 {[%clk 00:03:36]}
Be6 {[%clk 00:03:08]} {[%emt 00:00:12]} 49. Kh4 {[%clk 00:03:40]} {[%emt
00:00:01]} Bf7 {[%clk 00:03:12]} 50. g5+ {[%clk 00:03:34]} {[%emt 00:00:16]}
Kg7 {[%clk 00:03:17]} {[%emt 00:00:05]} 51. f5 {[%clk 00:03:38]} {[%emt
00:00:01]} gxf5 {[%clk 00:03:14]} {[%emt 00:00:08]} 52. Rxf5 {[%clk 00:03:42]}
{[%emt 00:00:01]} 1-0

[Event "Goteborg Open 2018"]
[Site "Molnlycke kulturhus, Biblioteksgatan 2, Molnlycke, Sweden"]
[Date "2018.08.17"]
[Round "3.6"]
[White "Strom-Engdahl, Alexander"]
[Black "Maddens, Martijn"]
[Result "0-1"]
[TimeControl "15 minutes + 5 seconds per move from move one (Round 1 - 4) / 90 minutes + 30 seconds per move from move one (Round 5 - 8)"]
[BlackTitle "CM"]
[WhiteFideId "1741586"]
[BlackFideId "206962"]
[WhiteElo "1747"]
[BlackElo "2141"]

1. c4 {[%clk 00:14:59]} {[%emt 00:00:05]} f5 {[%clk 00:15:03]} {[%emt
00:00:02]} 2. g3 {[%clk 00:14:53]} {[%emt 00:00:10]} Nf6 {[%clk 00:15:07]}
{[%emt 00:00:02]} 3. Bg2 {[%clk 00:14:57]} g6 {[%clk 00:15:11]} {[%emt
00:00:01]} 4. Nc3 {[%clk 00:14:56]} {[%emt 00:00:06]} Bg7 {[%clk 00:15:15]}
{[%emt 00:00:01]} 5. d4 {[%clk 00:14:42]} {[%emt 00:00:18]} d6 {[%clk
00:15:19]} {[%emt 00:00:02]} 6. Nf3 {[%clk 00:14:31]} {[%emt 00:00:16]} O-O
{[%clk 00:15:23]} {[%emt 00:00:01]} 7. O-O {[%emt 00:00:10]} Qe8 8. Bg5 {[%clk
00:14:14]} {[%emt 00:00:17]} Na6 {[%clk 00:14:42]} {[%emt 00:00:50]} 9. Bxf6
{[%clk 00:13:57]} {[%emt 00:00:21]} Bxf6 {[%clk 00:14:45]} {[%emt 00:00:02]} 10.
e3 {[%clk 00:13:47]} {[%emt 00:00:14]} e5 {[%clk 00:14:34]} {[%emt 00:00:17]}
11. Qb3 {[%clk 00:13:29]} {[%emt 00:00:23]} Rb8 {[%clk 00:13:42]} {[%emt
00:00:58]} 12. Nd5 {[%clk 00:11:54]} {[%emt 00:01:40]} Bg7 {[%clk 00:13:36]}
{[%emt 00:00:11]} 13. Rad1 {[%clk 00:11:02]} {[%emt 00:00:57]} Bd7 {[%clk
00:12:56]} {[%emt 00:00:45]} 14. c5 {[%clk 00:09:56]} {[%emt 00:01:10]} Be6
{[%clk 00:12:33]} {[%emt 00:00:28]} 15. Ng5 {[%clk 00:09:48]} {[%emt 00:00:13]}
c6 {[%clk 00:11:00]} {[%emt 00:01:39]} 16. Nxe6 {[%clk 00:09:40]} {[%emt
00:00:13]} Qxe6 {[%clk 00:11:02]} {[%emt 00:00:02]} 17. cxd6 {[%clk 00:09:06]}
{[%emt 00:00:39]} Kh8 {[%clk 00:10:14]} {[%emt 00:00:54]} 18. Nc7 {[%clk
00:07:33]} {[%emt 00:01:38]} Qxb3 {[%clk 00:09:23]} {[%emt 00:00:56]} 19. axb3
{[%clk 00:07:27]} {[%emt 00:00:11]} Nxc7 {[%clk 00:08:48]} {[%emt 00:00:40]} 20.
dxc7 {[%clk 00:07:31]} {[%emt 00:00:01]} Rbc8 {[%clk 00:08:52]} {[%emt
00:00:01]} 21. d5 {[%clk 00:06:47]} {[%emt 00:00:49]} Rxc7 {[%clk 00:08:52]}
{[%emt 00:00:05]} 22. dxc6 {[%clk 00:06:51]} bxc6 {[%clk 00:08:52]} {[%emt
00:00:05]} 23. e4 {[%clk 00:06:36]} {[%emt 00:00:20]} Bh6 {[%clk 00:06:50]}
{[%emt 00:02:07]} 24. Rd6 {[%clk 00:06:24]} {[%emt 00:00:17]} f4 {[%clk
00:03:41]} {[%emt 00:03:15]} 25. Re6 {[%clk 00:05:55]} {[%emt 00:00:33]} Bg7
{[%clk 00:03:43]} {[%emt 00:00:02]} 26. Rc1 {[%clk 00:05:47]} {[%emt 00:00:12]}
c5 {[%clk 00:03:00]} {[%emt 00:00:49]} 27. b4 {[%clk 00:05:34]} {[%emt
00:00:19]} c4 {[%clk 00:02:55]} {[%emt 00:00:11]} 28. Bf1 {[%clk 00:05:33]}
{[%emt 00:00:05]} Rfc8 {[%clk 00:02:05]} {[%emt 00:00:55]} 29. Ra6 {[%clk
00:03:52]} {[%emt 00:01:46]} Bf8 {[%clk 00:01:54]} {[%emt 00:00:16]} 30. b5
{[%clk 00:03:39]} {[%emt 00:00:18]} fxg3 {[%clk 00:01:48]} {[%emt 00:00:12]} 31.
hxg3 {[%clk 00:03:41]} {[%emt 00:00:03]} Bc5 {[%clk 00:01:50]} {[%emt
00:00:03]} 32. Ra4 {[%clk 00:03:08]} {[%emt 00:00:37]} Rf8 {[%clk 00:01:25]}
{[%emt 00:00:31]} 33. Raxc4 {[%clk 00:02:53]} {[%emt 00:00:19]} Bxf2+ {[%clk
00:01:28]} {[%emt 00:00:02]} 34. Kg2 {[%clk 00:02:58]} Rcf7 {[%clk 00:01:20]}
{[%emt 00:00:13]} 35. Rc7 {[%clk 00:02:01]} {[%emt 00:01:02]} Bd4 {[%clk
00:01:21]} {[%emt 00:00:05]} 36. Rxf7 {[%clk 00:02:00]} {[%emt 00:00:06]} Rxf7
{[%clk 00:01:25]} 37. Rc2 {[%clk 00:02:03]} {[%emt 00:00:02]} Kg7 {[%clk
00:01:20]} {[%emt 00:00:10]} 38. b3 {[%clk 00:01:58]} {[%emt 00:00:10]} g5
{[%clk 00:01:03]} {[%emt 00:00:21]} 39. Bc4 {[%clk 00:01:34]} {[%emt 00:00:29]}
Rf6 {[%clk 00:00:58]} {[%emt 00:00:11]} 40. Bd5 {[%clk 00:01:09]} {[%emt
00:00:30]} g4 {[%clk 00:00:50]} {[%emt 00:00:14]} 41. Rd2 {[%clk 00:00:44]}
{[%emt 00:00:30]} h5 {[%clk 00:00:47]} {[%emt 00:00:08]} 42. Rc2 {[%clk
00:00:40]} {[%emt 00:00:09]} Kg6 {[%clk 00:00:48]} {[%emt 00:00:04]} 43. Rd2
{[%clk 00:00:39]} {[%emt 00:00:06]} Kg5 {[%clk 00:00:52]} {[%emt 00:00:01]} 44.
Re2 {[%clk 00:00:20]} {[%emt 00:00:23]} h4 {[%clk 00:00:56]} {[%emt 00:00:01]}
45. gxh4+ {[%clk 00:00:24]} {[%emt 00:00:02]} Kxh4 {[%clk 00:01:00]} 46. Kh2
{[%clk 00:00:18]} {[%emt 00:00:11]} g3+ {[%clk 00:00:51]} {[%emt 00:00:13]} 47.
Kg2 {[%emt 00:00:02]} Kg4 {[%clk 00:00:53]} {[%emt 00:00:02]} 48. Bc6 {[%clk
00:00:23]} {[%emt 00:00:03]} Rh6 {[%clk 00:00:53]} {[%emt 00:00:04]} 49. Bd7+
{[%clk 00:00:27]} {[%emt 00:00:02]} Kf4 {[%clk 00:00:57]} 50. Bh3 {[%clk
00:00:25]} {[%emt 00:00:08]} Rg6 {[%clk 00:00:40]} {[%emt 00:00:23]} 51. Bf5
{[%clk 00:00:20]} {[%emt 00:00:10]} Rh6 {[%clk 00:00:40]} {[%emt 00:00:05]} 52.
Bh3 {[%clk 00:00:24]} Bf2 {[%clk 00:00:26]} {[%emt 00:00:19]} 53. b4 {[%clk
00:00:16]} {[%emt 00:00:14]} Rd6 {[%clk 00:00:20]} {[%emt 00:00:10]} 54. Bf5
{[%clk 00:00:10]} {[%emt 00:00:11]} Rd1 {[%clk 00:00:24]} 55. Rxf2+ {[%clk
00:00:13]} {[%emt 00:00:03]} gxf2 {[%clk 00:00:28]} {[%emt 00:00:01]} 56. Kxf2
{[%clk 00:00:17]} Rb1 {[%clk 00:00:31]} {[%emt 00:00:02]} 57. Be6 {[%clk
00:00:13]} {[%emt 00:00:10]} Rxb4 {[%clk 00:00:35]} {[%emt 00:00:01]} 58. Bd5
{[%clk 00:00:14]} {[%emt 00:00:04]} Rxb5 {[%clk 00:00:38]} {[%emt 00:00:02]} 59.
Ke2 {[%clk 00:00:18]} Rb4 {[%clk 00:00:40]} {[%emt 00:00:02]} 60. Kd3 {[%clk
00:00:23]} {[%emt 00:00:03]} Rd4+ {[%clk 00:00:44]} 61. Kc3 {[%clk 00:00:26]}
{[%emt 00:00:01]} Rxe4 {[%emt 00:00:09]} 0-1